Cogmind - Beta 14 @@@ ROGUE MODE // 2024.09.14 @ 21:24:15 Player: Dull Result: Destroyed by QN-RGY(R) with Subdweller Laser Performance ------------- Evolutions (0) 0 Regions Visited (2) 400 Robots Destroyed (24) 120 Value Destroyed (743) 743 Prototype IDs (3) 60 Alien Tech Used (0) 0 Bonus (0) 0 TOTAL SCORE: 1323 Bonus ------- None Cogmind --------- Core Integrity 0/250 Matter 255/300 Energy 227/250 System Corruption 0% Temperature Cool (90) Movement Treading (320) Ox2 Location -10/Subcaves Parts ------- > --- POWER (1) -------- Ion Engine > --- PROPULSION (2) --- Light Treads Light Treads > --- UTILITY (2) ------ Huge Storage Unit Makeshift Light Armor Plating > --- WEAPON (2) ------- Subdweller Beam Cannon Battle Cannon > --- INVENTORY (25) --- Ion Engine Light Ion Engine Light Ion Engine Light Treads Light Treads Wheel Wheel Huge Storage Unit Light Armor Plating Light Armor Plating Light Armor Plating Makeshift Hacking Suite Medium Laser Light Assault Rifle Light Assault Rifle Grenade Launcher Mining Laser Peak State ------------ > --- POWER ------------ Subdweller Power Source > --- PROPULSION ------- Light Treads Light Treads > --- UTILITY ---------- Huge Storage Unit Makeshift Light Armor Plating > --- WEAPON ----------- Subdweller Laser Battle Cannon > --- INVENTORY -------- Ion Engine Ion Engine Light Ion Engine Light Ion Engine Light Treads Light Treads Light Treads Wheel Wheel Huge Storage Unit Light Armor Plating Light Armor Plating Light Armor Plating Makeshift Hacking Suite Medium Laser Light Assault Rifle Light Assault Rifle Grenade Launcher Mining Laser [Rating: 15] Favorites ----------- Power Ion Engine Engine Ion Engine Propulsion Light Treads Treads Light Treads Leg Aluminum Leg Utility Huge Storage Unit Device Improved Heat Sink Storage Huge Storage Unit Protection Light Armor Plating Weapon Light Assault Rifle Energy Gun Particle Gun Energy Cannon Subdweller Beam Cannon Ballistic Gun Light Assault Rifle Ballistic Cannon Battle Cannon Launcher Grenade Launcher Build | -11 -10 -10 ------- Run | Yrd Mat Sub Slots Evolved . | . . . Power . | . . . Propulsion . | . . . Utility . | . . . Weapon . | . . . Parts Attached 26 | 2 12 12 Power 5 | . 3 2 Engine 5 | . 3 2 Core . | . . . Reactor . | . . . Propulsion 6 | 2 2 2 Treads 6 | 2 2 2 Leg . | . . . Wheel . | . . . Hover . | . . . Flight . | . . . Utility 7 | . 5 2 Device 1 | . 1 . Storage 2 | . 2 . Processor . | . . . Hackware . | . . . Protection 4 | . 2 2 Artifact . | . . . Weapon 8 | . 2 6 Energy Gun 5 | . 1 4 Energy Cannon 1 | . . 1 Ballistic Gun . | . . . Ballistic Cannon 1 | . . 1 Launcher 1 | . 1 . Special Weapon . | . . . Impact Weapon . | . . . Slashing Weapon . | . . . Piercing Weapon . | . . . Special Melee Weapon . | . . . Unidentified Prototypes . | . . . Parts Lost 8 | . 3 5 Power . | . . . Propulsion 4 | . 2 2 Utility 2 | . 1 1 Weapon 2 | . . 2 Highest Loss Streak 2 | . 2 2 To Critical Strikes . | . . . Average Slot Usage (%) 97 | . 96 99 Engine 14 | . 14 14 Treads 27 | . 27 27 Storage 14 | . 14 14 Protection 10 | . 8 14 Energy Gun 9 | . 10 7 Energy Cannon 2 | . . 6 Ballistic Gun 11 | . 17 1 Ballistic Cannon 4 | . . 12 Peak Build Rating 15 | 6 10 15 Average Rating 10 | 6 8 13 On Entrance 7 | 6 6 9 Naked Turns . | . . . Heaviest Build 100 | 12 92 100 Greatest Support 40 | 40 40 40 Greatest Overweight (x) 4 | . 2 4 Average Overweight (x) 1 | . 1 2 Largest Inventory Capacity 25 | 8 25 25 Average Capacity 23 | 8 22 25 Most Carried 20 | 6 19 20 Average Carried 17 | 6 16 18 Final Capacity 25 | 8 25 25 Final Carried 18 | 6 18 17 Class Distribution -------------------- 96% | Mutant 3% | Scavenger-Mutant Dominant Class ---------------- Mutant | -10/Materials Mutant | -10/Subcaves Resources | -11 -10 -10 ----------- Run | Yrd Mat Sub Matter Collected 630 | 200 245 185 Remotely . | . . . Salvage Created 1013 | . 669 344 Parts 56 | . 34 22 Haulers Intercepted 2 | . 2 . Recyclers Shooed . | . . . Parts Field Recycled . | . . . Retrieved Matter . | . . . Parts Self-Destructed 4 | . . 4 Prevented . | . . . Kills | -11 -10 -10 ------- Run | Yrd Mat Sub Combat Hostiles Destroyed 21 | . 14 7 Guns 17 | . 14 3 Cannons 4 | . . 4 Classes Destroyed 6 | . 4 2 Hauler 2 | . 2 . Recycler 1 | . 1 . Swarmer 3 | . 3 . Grunt 11 | . 11 . Cobbler 2 | . . 2 Subdweller 7 | . . 7 Best Kill Streak 2 | . 2 2 Combat Bots Only 2 | . 2 2 Max Kills in Single Turn 1 | . 1 1 Gunslinging . | . . . Exploded . | . . . Melee . | . . . Uniques/NPCs Destroyed . | . . . Combat | -11 -10 -10 -------- Run | Yrd Mat Sub Hostile Shots Fired 161 | . 110 51 Missed 44 | . 30 14 Damage Taken 1654 | . 872 782 Core 258 | . 142 116 Absorbed by Shields . | . . . Core Remaining (%) 100 | 100 . . Volleys Fired 112 | . 80 32 Largest 2 | . 2 2 Hottest 119 | . 85 119 Shots Fired 223 | . 159 64 Gun 194 | . 158 36 Cannon 28 | . . 28 Launcher 1 | . 1 . Special . | . . . Kinetic 152 | . 120 32 Thermal 70 | . 38 32 Explosive 1 | . 1 . Electromagnetic . | . . . Robot Hit Streak 16 | . 13 16 Robot Miss Streak 3 | . 3 2 Penetration Max . | . . . Secondary Targets 2 | . 1 1 Max Gunslinging Chain 1 | . 1 1 Shots Hit Robots 151 | . 108 43 Core Hits 55 | . 38 17 Critical Kills . | . . . Critical Parts Destroyed . | . . . Critical Strikes 3 | . . 3 Burn 1 | . . 1 Blast 2 | . . 2 Melee Attacks . | . . . Impact . | . . . Slashing . | . . . Piercing . | . . . Sneak Attacks . | . . . Combat Hostiles . | . . . Follow-up Attacks . | . . . Damage Inflicted 1884 | . 1127 757 Guns 1506 | . 1127 379 Cannons 378 | . . 378 Explosions . | . . . Melee . | . . . Ramming . | . . . Kinetic 1028 | . 686 342 Thermal 856 | . 441 415 Explosive . | . . . Electromagnetic . | . . . Impact . | . . . Slashing . | . . . Piercing . | . . . Highest Corruption . | . . . Average Corruption . | . . . Corruption Purged . | . . . Corruption Blocked . | . . . Overload Shots . | . . . Overflow Damage . | . . . Projectiles . | . . . Explosions . | . . . Melee . | . . . Knockbacks 5 | . . 5 Impact . | . . . Kinetic 5 | . . 5 Secondary . | . . . Self-Inflicted Damage . | . . . Shots . | . . . Rammed . | . . . Targets Rammed . | . . . Kicked . | . . . Crushed . | . . . Highest Temperature 235 | . 235 84 Average Temperature 64 | . 68 28 Received Heat Transfer 567 | . 387 180 Siege Activations . | . . . Robots Corrupted . | . . . Combat Hostiles . | . . . Parts Fried . | . . . Impact Corruptions . | . . . Robots Melted . | . . . Combat Hostiles . | . . . Parts Melted 3 | . 3 . Heat Transferred 1828 | . 1036 792 Parts Sabotaged . | . . . Parts Stolen . | . . . Parts Stripped . | . . . Power Chain Reactions . | . . . Alert | -11 -10 -10 ------- Run | Yrd Mat Sub Peak Influence 168 | . 168 . Initial . | . . . Average 77 | . 77 . Maximum Alert Level . | . . . Low Security (%) 100 | 100 100 . Level 1 . | . . . Level 2 . | . . . Level 3 . | . . . Level 4 . | . . . Level 5 . | . . . High Security . | . . . Max Security . | . . . Squads Dispatched 1 | . 1 . Investigation 1 | . 1 . Extermination . | . . . Reinforcement . | . . . Assault . | . . . Garrison . | . . . Intercept . | . . . Searches Triggered . | . . . Construction Impeded . | . . . Haulers Reinforced . | . . . Active Scanning Responses . | . . . Cargo Convoy Interrupts . | . . . Stealth | -11 -10 -10 --------- Run | Yrd Mat Sub Distress Signals 1 | . 1 . Communications Jammed . | . . . Distress Signals . | . . . Times Spotted 38 | . 30 8 Peak Tracking Total 5 | . 5 2 Tactical Retreats 6 | . 6 . Traps | -11 -10 -10 ------- Run | Yrd Mat Sub Traps Triggered 1 | . 1 . Indirectly . | . . . Trap Hack Attempts . | . . . Triggered . | . . . Disarmed . | . . . Reprogrammed . | . . . Reused . | . . . Traps Extracted . | . . . Installed . | . . . Triggered . | . . . Machines | -11 -10 -10 ---------- Run | Yrd Mat Sub Machines Disabled 1 | . 1 . Max in Single Turn 1 | . 1 . Machines Repaired . | . . . Machines Dismantled . | . . . Machines Sabotaged . | . . . Overloaded Fab Kills . | . . . Hacking | -11 -10 -10 --------- Run | Yrd Mat Sub Machines Accessed 8 | . 8 . Terminals 6 | . 6 . Fabricators . | . . . Repair Stations . | . . . Recycling Units 2 | . 2 . Scanalyzers . | . . . Garrison Access . | . . . Total Hacks 20 | . 20 . Successful 8 | . 8 . Failed 11 | . 11 . Catastrophic 5 | . 5 . Database Lockouts 1 | . 1 . Manual 18 | . 18 . Terminals 14 | . 14 . Fabricators . | . . . Repair Stations . | . . . Recycling Units 6 | . 6 . Scanalyzers . | . . . Garrison Access . | . . . Terminal Hacks 5 | . 5 . Robot Analysis 4 | . 4 . Prototype ID Bank 1 | . 1 . Fabricator Hacks . | . . . Repair Station Hacks . | . . . Recycling Unit Hacks . | . . . Scanalyzer . | . . . Garrison Access Hacks . | . . . Unauthorized Hacks 3 | . 3 . Terminals . | . . . Fabricators . | . . . Repair Stations . | . . . Recycling Units 3 | . 3 . Reject 1 | . 1 . Mask 2 | . 2 . Scanalyzers . | . . . Garrison Access . | . . . Data Cores Recovered . | . . . Used . | . . . Hacking Detections 6 | . 6 . Full Trace Events 1 | . 1 . Feedback Events . | . . . Feedback Blocked . | . . . Robot Schematics Acquired . | . . . Robots Built . | . . . Authchips . | . . . Time . | . . . Total Robot Build Rating . | . . . Part Schematics Acquired . | . . . Parts Built . | . . . Authchips . | . . . Time . | . . . Total Part Build Rating . | . . . Parts Repaired . | . . . Time . | . . . Parts Recycled . | . . . Recycled Matter . | . . . Retrieved Matter . | . . . Retrieved Components . | . . . Parts Scanalyzed . | . . . Part Schematics Acquired . | . . . Parts Damaged . | . . . Bothacking | -11 -10 -10 ------------ Run | Yrd Mat Sub Used RIF Installer . | . . . Robots Hacked . | . . . Non-combat . | . . . Combat . | . . . Robot Hacks Applied . | . . . Relay Couplers Released . | . . . Fabnet Peak Effective % . | . . . Robots Rewired . | . . . Allies Hacked . | . . . Hacks Repelled . | . . . Allies | -11 -10 -10 -------- Run | Yrd Mat Sub Total Allies . | . . . Largest Group . | . . . Highest-Rated Group . | . . . Highest-Rated Ally . | . . . Total Orders . | . . . Ally Attacks . | . . . Total Damage . | . . . Kills . | . . . Allies Corrupted . | . . . Allies Melted . | . . . Intel | -11 -10 -10 ------- Run | Yrd Mat Sub Robot Analysis Total 4 | . 4 . Derelict Logs Recovered 1 | . . 1 Drone Launches . | . . . Drone Recoveries . | . . . Exploration | -11 -10 -10 ------------- Run | Yrd Mat Sub Turns Passed 3546 | 3 2112 1431 Spaces Moved 1036 | 1 666 369 Core . | . . . Treads 1036 | 1 666 369 Legs . | . . . Wheels . | . . . Hover . | . . . Flight . | . . . Fastest Speed 160 | 160 160 320 Average Speed 288 | 160 270 320 Slowest Speed 480 | 160 320 480 Overloaded Moves . | . . . Propulsion Burnouts . | . . . Robots Hopped . | . . . Cave-ins Triggered . | . . . Exploration Rate (%) 40 | 2 91 28 Regions Visited 2 Branch Regions 1 Pre-discovered Areas 1 | . . 1 Known Exits Taken . | . . . Unknown Exits Taken 2 | 1 1 . Scrap Searched 2 | . . 2 Spaces Dug . | . . . Terrain Destroyed 9 | . 8 1 Melee . | . . . Projectile 1 | . . 1 AOE 8 | . 8 . Terrain Rammed . | . . . Walls Destroyed . | . . . Machines Disabled . | . . . Actions | -11 -10 -10 --------- Run | Yrd Mat Sub Total 1403 | 2 847 554 Wait 200 | . 61 139 Move 1034 | . 665 369 Hop . | . . . Pick Up 21 | . 20 1 Fast Attach 1 | . 1 . Attach 9 | . 3 6 Detach . | . . . Swap 16 | 2 8 6 Drop 10 | . 9 1 Fire 112 | . 80 32 Melee . | . . . Ram . | . . . Kick . | . . . Crush . | . . . Escape Stasis . | . . . Rewire . | . . . Trap . | . . . Miscellaneous . | . . . Route ------- -11/Scrapyard -10/Materials (discovered 5 exits: [*Mat x2] / [*Min x2] / [*Sub]) -10/Subcaves (discovered 1 exit: Rec) History --------- Turn | Location | Event 4 | -11/Scrapyard | Discovered new exit (range 0) 4 | -11/Scrapyard | Entered Materials 4 | -10/Materials | Discovered new exit (range 16) 312 | -10/Materials | Build established: Mutant 527 | -10/Materials | Discovered new exit (range 16) 764 | -10/Materials | Central database locked down 940 | -10/Materials | Core integrity fell below 50% 1001 | -10/Materials | Discovered new exit (range 6) 1497 | -10/Materials | Discovered new exit (range 6) 2099 | -10/Materials | Discovered new exit (range 5) 2116 | -10/Materials | Entered Subcaves 2118 | -10/Subcaves | Ambushed by Subdwellers from Twisted Machinery 2267 | -10/Subcaves | Shifting Twisted Machinery released Battle Cannon 2280 | -10/Subcaves | Shifting Twisted Machinery released Sub. Monowheel 2752 | -10/Subcaves | Core integrity fell below 20% 3255 | -10/Subcaves | Learned location of Zion (-7) 3255 | -10/Subcaves | Met a Zionite searching for "candidates" 3388 | -10/Subcaves | Identified exit to Recycling 3547 | -10/Subcaves | Destroyed by QN-RGY(R) with Subdweller Laser Last Messages --------------- 02887_ IP-2BF(O) destroyed. 02894_ 9O-4IJ(O) collects matter. 02906_ 9O-4IJ(O) cries out in pain. 02906_ 9O-4IJ(O) destroyed. 02912_ Acquired Sub. Beam Cannon. 02914_ Acquired 35 matter. 03085_ KL-I0C(R): "MADSUB!" 03255_ NF-9FW(z): "Hey you! It's really dangerous down here, I feel that you could die at any moment. For your health and safety might I suggest a trip to Zion?" World map updated: -7/Zion. 03388_ Acquired derelict log, extracted data. Loading 1 Recycling entrance... 03457_ Sub. Power Source shoots sparks and powers down. 03481_ Dropped Broken Sub. Power Source. 03527_ Lgt. Treads destroyed. 03532_ 67-1W9(R) destroyed. 03535_ QN-RGY(R) knocked back. 03536_ QN-RGY(R) affixes Scrap Shield Fragment to Scrap Shield. 03538_ QN-RGY(R) knocked back. Map ----- +----------------------------------------------------+ | ?????????????????????????????????????????????????? | | ?????????????????????????????????????????????????? | | ?????????????????????????????????????????????????? | | ?????????????????????????????????????????????????? | | ?????????????????????????????????????????????????? | | ?????????????????????????????????????????????????? | | ?????????????????????????????????????????????????? | | ?????????????????????????????????????????????????? | | ?????????????????????????????????????????????????? | | ?????????????????????????????????????????????????? | | ?????????????????????????????????######?????####?? | | ????????????????????????????????## ###### ##? | | ???????????????????????????????## ## | | ??????????????????????????????## | | ??????????????????????????? | | ????????????? ???????????? ## | | ???????????? ????????????????????## ## | | ???????????? ###??????????????????# ## #### | | ??????????? ?????????????????## # ##?## | | ??????????? ?##?????????????# ##??# | | ?????????? ## ????????####?## #####???# | | ?????????? ????????# ### ##???????## | | ?????????? ????????# #???????# | | ????????? % ????????# #???????# | | ????????????# =;####?### #???????## | | ?????????????# R %&@ ### * ### ## #??????? | | ?????????????# % !& ##?###?###????##? | | ?????????????## % #????????????## | | ??????????????##### ### #???????????# | | ??????????????????########?#### #??????????# | | ??????????????????????????????######??????????# # | | ???????????????????????????????????????????####?## | | ???????????????????????????????????????????# ##??? | | ???????????????????????????????????????????# #??? | | ???????????????????????????????????????????# ##?? | | ???????????????????????????????????????????# #?? | | ???????????????????????????????????????????# ### | | ???????????????????????????????????????????## % | | ????????????????????????????????????????????# % | | ????????????????????????????????????????????# ## | | ????????????????????????????????????????????#### | | ????????????????????????????????????????????### | | ???????????????????????????????????????????## | | ???????????????????????????????????????????# | | ??????????????????????????????????????????## | | ??????????????????????????????????????????# | | ??????????????????????????????????????????##### | | ??????????????????????????????????????????????#### | | ?????????????????????????????????????????????????? | | ?????????????????????????????????????????????????? | +----------------------------------------------------+ Best States ------------- Heat Dissipation 39 Energy Generation 15 Energy Capacity 250 Matter Stores 300 Matter Capacity 300 Sight Range 16 Terrain Scan Density 10 Armor Coverage 150 Evasion (%) 40 Recoil Reduction 2 Item Schematics ----------------- None Robot Schematics ------------------ None Fabricated ------------ Nothing Alien Tech Used ----------------- None Achievements -------------- None Challenges ------------ None Game ------ Seed ComponentLightningSlayer Manual? 0 Play Time 00:13:04 Cumulative 79.0 hours Start 2024.09.14 @ 21:11:54 End 2024.09.14 @ 21:24:15 Sessions 1 Manual Loads 0 Difficulty Rogue Special Mode None Game No. 109 Rogue 109 Adventurer 0 Explorer 0 Win Type - Total 1 Types 1/0/0/0/0/0/0/0/0 Lore% 17 Gallery% 55 Achievement% 43 Wizard Run 0 Options --------- Layout 0 ASCII 0 Keyboard 0 Movement Mouse Keybinds 1 Fullscreen 1 Font 18/TerminusBold Map View 76x50 Zoom Use 0% Tactical HUD 1 Map Filters NONE Filters NONE Steam 1 RUN: 654a759c-f553-4533-870a-146473163923